bitfinex/quotes_ETHUSD_20220226
["timestamp","ask_amount","ask_price","bid_price","bid_amount"]
[1645833602342,0.29644412,2770.7,2770.2,1.84145121]
[1645833602737,0.29644412,2770.7,2770.4,0.04730662]
[1645833603139,0.29644412,2770.7,2770.2,1.84145121]
[1645833603339,0.30121493,2770.7,2770.2,1.84145121]
[1645833603738,0.30721493,2770.7,2770.2,51.84145121]
[1645833604141,0.30244412,2770.7,2770.2,51.84145121]
[1645833604340,0.30244412,2770.7,2770.4,0.04730662]
[1645833604540,0.30721493,2770.7,2770.2,51.84145121]
[1645833605345,0.30244412,2770.7,2770.2,52.84145121]
[1645833605589,0.30244412,2770.7,2770.2,51.84145121]
[1645833605790,0.30721493,2770.7,2770.4,0.04730662]
[1645833605990,0.30721493,2770.7,2770.2,52.83875783]
[1645833606391,0.30721493,2770.7,2770.2,54.64383783]
[1645833606392,1.52671547,2770.6,2770.2,54.64383783]
[1645833608793,1.52671547,2770.6,2770.2,55.07183783]
[1645833609239,1.52671547,2770.6,2770.4,19.859183]
[1645833609728,1.52671547,2770.6,2770.4,20.87432614]
[1645833609929,0.30700991,2770.7,2770.4,20.87432614]
[1645833610135,0.30244412,2770.7,2770.4,20.87432614]
[1645833610534,0.30701008,2770.7,2770.4,20.87432614]
[1645833610935,0.25701008,2770.7,2770.4,20.87432614]
[1645833611340,1.52663152,2770.6,2770.4,21.30232614]
[1645833611537,0.25244412,2770.7,2770.4,21.30232614]
[1645833611736,0.25721259,2770.7,2770.4,21.30232614]
[1645833612137,1.52655891,2770.6,2770.4,19.87432614]
[1645833612336,1.52655891,2770.6,2770.4,19.57432614]
[1645833612742,13.2346178,2770.6,2770.4,19.57432614]
[1645833612983,12.55655891,2770.5,2770.4,19.57432614]
[1645833613183,12.70085891,2770.5,2770.4,19.57432614]
[1645833613384,13.72774707,2770.5,2770.4,19.57432614]
[1645833613883,13.72774707,2770.5,2770.3,0.03106696]
[1645833613884,19.72774707,2770.5,2770.3,0.03106696]
[1645833614084,12.55655891,2770.4,2770.3,0.03106696]
[1645833614283,13.70085891,2770.4,2770.3,6.696e-05]
[1645833614886,13.38016642,2770.4,2770.2,50.21259158]
[1645833615084,12.55655891,2770.3,2770.2,48.58379372]
[1645833615287,13.23586642,2770.3,2770.2,48.58379372]
[1645833615686,19.23586642,2770.3,2770.2,48.58379372]
[1645833615988,18.55655891,2770.3,2770.2,48.58379372]
[1645833616187,19.92618591,2770.3,2770.2,48.58379372]
[1645833616593,21.29852224,2770.3,2770.2,46.57506954]
[1645833616842,22.2831488,2770.3,2770.2,6.51636576]
[1645833617044,20.92703101,2770.3,2770.2,1.26036576]
[1645833617340,22.28631844,2770.3,2770.2,1.26036576]
[1645833617540,20.92703101,2770.3,2770.2,1.26036576]
[1645833617946,22.28558002,2770.3,2770.2,1.26036576]
[1645833618144,22.64683002,2770.3,2770.2,6.576e-05]
[1645833618353,12.114,2769.7,2769.6,0.00477018]
[1645833618548,19.0979215,2769.7,2769.6,0.00477018]
[1645833618747,19.0979215,2769.7,2769.5,1.0]
[1645833618748,15.76422845,2769.7,2769.5,1.0]
[1645833618951,3.28982316,2769.6,2769.5,1.0]
[1645833619148,2.61055891,2769.6,2769.5,1.0]
[1645833622183,2.61055891,2769.6,2769.5,1.71955018]
[1645833622386,1.084,2769.6,2769.5,1.71955018]
[1645833623187,2.61109755,2769.6,2769.5,1.71955018]
[1645833623987,12.60405155,2770.3,2769.5,1.71955018]
[1645833623988,1.084,2770.2,2769.5,1.71955018]
[1645833624249,1.084,2770.0,2769.5,1.71955018]
[1645833624437,1.084,2769.8,2769.5,1.71955018]
[1645833624637,1.57405155,2770.3,2769.5,1.71955018]
[1645833624638,1.084,2769.6,2769.5,1.71955018]
[1645833624842,0.90562865,2770.5,2769.5,1.71955018]
[1645833624843,0.67926425,2770.4,2770.1,1.80185015]
[1645833625043,0.67926425,2770.5,2770.2,0.71955018]
[1645833625243,0.00292839,2770.6,2770.2,0.71955018]
[1645833625444,0.6900323,2770.7,2770.2,0.71955018]
[1645833625643,11.03,2770.5,2770.2,0.71955018]
[1645833625846,0.67926425,2770.6,2770.2,0.71955018]
[1645833625847,0.67926425,2770.4,2770.2,0.71955018]
[1645833626042,0.67926425,2770.4,2769.6,0.72432012]
[1645833626244,0.67926425,2770.4,2769.6,0.72432046]
[1645833626441,0.50942839,2770.6,2769.8,1.12811524]
[1645833626442,0.67926425,2770.5,2769.8,1.12811524]
[1645833626647,0.67926425,2770.5,2769.9,0.71955018]
[1645833628082,0.67926425,2770.5,2770.0,0.71955018]
[1645833628486,0.67926425,2770.3,2770.0,0.71955018]
[1645833628685,6.425e-05,2770.3,2770.0,0.71955018]
[1645833628889,0.00892839,2770.7,2770.1,0.71955018]
[1645833628890,0.01369668,2770.7,2770.1,0.71955018]
[1645833629090,0.01076829,2770.7,2770.4,0.71955018]
[1645833629489,0.006,2770.7,2770.4,0.71955018]
[1645833629689,0.00292839,2771.0,2770.6,0.71955018]
[1645833629899,0.90562865,2771.2,2770.7,0.71955018]
[1645833629900,0.01596779,2771.1,2770.7,0.71955018]
[1645833630689,0.0016272,2771.3,2770.7,0.71955018]
[1645833630891,0.0016272,2771.3,2771.2,0.71955018]
[1645833631928,2.72e-05,2771.3,2771.2,0.71955018]
[1645833632327,2.72e-05,2771.3,2771.2,1.01955018]
[1645833632527,2.72e-05,2771.3,2771.2,2.46164768]
[1645833632733,0.52993246,2771.3,2771.2,2.16164768]
[1645833633736,0.00443121,2771.4,2771.2,2.16164768]
[1645833634232,0.00292839,2771.9,2771.2,2.46164768]
[1645833634432,1.26782865,2772.0,2771.2,2.46164768]
[1645833634632,1.3614774,2772.2,2771.2,2.16164768]
[1645833634633,0.00432008,2771.4,2771.2,2.16164768]
[1645833634831,0.00432008,2771.4,2771.2,2.11164768]
[1645833635233,2.008e-05,2771.4,2771.2,0.84576614]
[1645833635484,0.00292839,2772.0,2771.3,8.8622]
[1645833635687,1.9997668,2772.9,2771.3,11.66632]
[1645833635688,0.90562865,2772.6,2771.3,11.66632]
[1645833635890,2.008e-05,2771.4,2771.3,11.30412]
[1645833636087,0.01727772,2771.9,2771.4,6.0]
[1645833636295,0.01727772,2771.9,2771.3,1.80412]
[1645833636489,11.03,2771.7,2771.0,1.14260303]
[1645833636690,0.3622,2771.8,2771.0,1.14260303]
[1645833636691,0.07026051,2771.8,2771.0,1.14260303]
[1645833636892,13.69151263,2772.7,2771.3,5.0]
[1645833637090,13.69151263,2772.7,2771.4,0.7902]
[1645833637091,0.03819997,2772.6,2771.4,0.7902]
[1645833637288,0.03819997,2772.6,2771.4,1.9588]
[1645833637689,0.03819997,2772.6,2772.0,1.0420117]
[1645833638092,1.9997668,2772.9,2772.1,0.90204]
[1645833638293,0.01786034,2772.6,2772.1,0.90204]
[1645833638493,0.01786034,2772.6,2772.0,1.6420117]
[1645833638692,6.034e-05,2772.6,2772.1,0.3622]
[1645833639093,1.9997668,2772.9,2772.1,0.3622]
[1645833639338,1.9997668,2772.9,2772.5,0.3]
[1645833639741,1.9997668,2772.9,2772.1,0.90193]
[1645833639940,1.9997668,2772.9,2772.1,1.20193]
[1645833640340,1.9997668,2772.9,2772.1,0.90193]
[1645833640741,1.9997668,2772.9,2772.1,1.26413]
[1645833641342,1.9997668,2772.9,2772.4,1.1948609]
[1645833641944,3.91845823,2773.3,2772.5,1.80362]
[1645833641945,3.7511972,2773.3,2772.5,1.80362]
[1645833642143,3.7511972,2773.3,2772.5,2.10362]
[1645833642344,3.7511972,2773.3,2772.6,0.90175]
[1645833642844,3.7511972,2773.3,2772.7,0.3]
[1645833643287,0.0047648,2773.1,2772.7,0.3]
[1645833643489,0.0047648,2773.1,2772.6,1.20175]
[1645833643690,6.48e-05,2773.1,2772.7,0.3]
[1645833644093,3.701262,2773.3,2772.7,0.3]
[1645833644294,6.492e-05,2773.0,2772.7,0.3]
[1645833645193,3.701262,2773.3,2772.7,0.3]
[1645833645194,1.663062,2773.3,2772.7,0.3]
[1645833645394,6.2e-05,2773.3,2772.8,0.3622]
[1645833645694,6.2e-05,2773.3,2772.7,0.3]
[1645833645695,6.2e-05,2773.3,2773.0,0.3622]
[1645833645996,6.2e-05,2773.3,2773.0,1.69166]
[1645833646194,6.2e-05,2773.3,2773.1,0.6622]
[1645833646394,6.2e-05,2773.3,2773.2,0.7902]
[1645833646599,4.50617428,2774.1,2773.2,0.428]
[1645833646853,4.50617428,2774.1,2773.2,0.728]
[1645833647254,4.50617428,2774.1,2773.7,1.28268604]
[1645833647653,4.50617428,2774.1,2773.7,1.58268604]
[1645833647952,4.50617428,2774.1,2773.7,0.3]
[1645833647953,0.00143407,2773.8,2773.7,0.3]
[1645833648152,0.00143407,2773.8,2773.4,0.90136]
[1645833648153,0.00143407,2773.8,2773.4,1.20136]
[1645833648654,0.00143407,2773.8,2773.5,0.3]
[1645833649054,0.00476485,2773.7,2773.5,0.3]
[1645833649853,4.50617428,2774.1,2773.5,0.3]
[1645833650156,4.50617428,2774.1,2773.3,1.80272]
[1645833650157,0.00443269,2773.7,2773.3,1.80272]
[1645833650356,0.00443269,2773.7,2773.3,2.10272]
[1645833650597,0.00443269,2773.7,2773.2,1.5268]
[1645833650992,0.00443269,2773.7,2773.2,1.56331543]
[1645833651193,0.1441,2774.0,2773.2,1.56331543]
[1645833651194,0.1441,2774.0,2773.5,1.15345431]
[1645833651395,0.00443285,2773.6,2773.2,1.56331543]
[1645833652494,0.00443291,2773.5,2773.3,0.90158]
[1645833652694,0.00443291,2773.5,2773.2,0.03651543]
[1645833652895,0.17097532,2773.5,2773.2,0.03651543]
[1645833653295,0.00443291,2773.5,2773.2,0.03651543]
[1645833653495,0.00289101,2773.7,2773.2,0.03651543]
[1645833653895,0.00443296,2773.5,2773.2,0.03651543]
[1645833654743,11.03,2773.3,2773.2,0.03651543]
[1645833654943,0.04309635,2772.9,2772.7,0.00446211]
[1645833655141,0.04309635,2772.9,2772.6,48.37710224]
[1645833655142,0.18719635,2772.9,2772.6,48.37710224]
[1645833655545,0.04309635,2772.9,2772.6,48.37710224]
[1645833656146,0.20873522,2772.9,2772.6,48.37530858]
[1645833656442,11.07309635,2772.9,2772.6,48.37530858]
[1645833656642,11.07309635,2772.9,2772.6,41.77450725]
[1645833656643,0.30973887,2772.8,2772.6,41.77450725]
[1645833656852,0.30973887,2772.8,2772.6,15.11790725]
[1645833656853,11.04253787,2772.7,2772.6,15.11790725]
[1645833657045,11.71352674,2772.7,2772.6,12.78790725]
[1645833657343,11.3922,2772.5,2772.0,5.0]
[1645833657545,1.47817674,2772.7,2772.0,5.0]
[1645833657546,11.03,2772.2,2772.0,5.0]
[1645833657746,11.1741,2772.1,2772.0,5.0]
[1645833657994,11.33973887,2772.1,2772.0,5.0]
[1645833658192,12.33973887,2772.1,2772.0,5.0]
[1645833658397,12.1741,2772.1,2772.0,5.0]
[1645833658596,12.33973887,2772.1,2772.0,5.0]
[1645833658995,0.3622,2771.3,2770.7,1.1921]
[1645833659995,0.00289101,2771.8,2770.7,1.1921]
[1645833660602,0.00289101,2772.0,2770.7,1.1921]
[1645833660803,5.0,2771.4,2770.3,0.90255]
[1645833661007,5.0,2771.4,2770.1,1.2795]
[1645833661008,0.3622,2770.9,2770.4,4.7996]
[1645833661203,11.3922,2770.6,2769.9,1.15806509]
[1645833661605,0.16541004,2770.8,2769.8,5.0618]
[1645833661830,0.1443,2770.9,2769.8,5.0618]
[1645833662042,2.71158101,2771.8,2769.8,5.424]
[1645833662236,2.71158101,2771.8,2770.2,0.3622]
[1645833662237,0.00289101,2771.8,2770.2,0.3622]
[1645833662434,0.00289101,2771.8,2770.4,0.3622]
[1645833662631,0.00289101,2772.0,2771.2,1.44202793]
[1645833662831,0.00289101,2772.0,2771.3,4.7817]
[1645833663031,0.53653782,2772.1,2771.3,4.7817]
[1645833663032,0.71894601,2772.1,2771.3,4.7817]
[1645833663432,0.71894601,2772.1,2771.5,0.00476773]
[1645833663433,0.53653782,2772.1,2771.5,0.00476773]
[1645833664236,0.53653782,2772.1,2771.4,1.0709624]
[1645833664638,0.75381748,2772.3,2771.7,0.00476749]
[1645833664837,0.00289101,2772.5,2771.7,0.00476749]
[1645833665233,0.00289101,2772.6,2771.7,0.00476749]
[1645833665481,0.00289101,2772.6,2771.5,1.1964]
[1645833665482,1.52873967,2772.6,2771.5,1.1964]
[1645833665885,1.52873967,2772.6,2771.8,0.00476748]
[1645833665886,0.22602314,2772.5,2771.8,0.00476748]
[1645833666086,0.58354291,2772.6,2771.8,0.00476748]
[1645833666285,12.91808513,2772.5,2771.8,0.00476748]
[1645833666488,1.52588513,2772.4,2771.8,0.00476748]
[1645833666684,1.52588513,2772.4,2771.9,1.3378642]
[1645833666885,0.00289101,2772.3,2771.9,1.3378642]
[1645833667087,1.52581241,2772.5,2771.9,1.3378642]
[1645833667291,7.70621604,2772.9,2771.9,1.3378642]
[1645833667492,1.52872228,2772.8,2771.9,1.3378642]
[1645833667689,1.72131092,2772.8,2771.9,1.3378642]
[1645833668090,1.52583127,2772.7,2771.9,1.3378642]
[1645833668688,1.52583127,2772.7,2771.8,0.00467996]
[1645833668889,0.1441,2772.6,2771.8,0.00467996]
[1645833669090,1.52583127,2772.5,2771.8,0.00467996]
[1645833669333,1.52583127,2772.5,2771.8,0.00935987]
[1645833669533,1.52583127,2772.5,2771.8,0.00467991]
[1645833669735,1.52583127,2772.5,2771.9,1.29824264]
[1645833669937,1.52583127,2772.5,2771.8,0.00467991]
[1645833670333,1.52583127,2772.5,2771.5,1.1981808]
[1645833670539,0.00289101,2772.4,2771.8,0.00467986]
[1645833670740,1.52583127,2772.5,2771.8,0.00467986]
[1645833670937,1.52583127,2772.5,2772.1,1.25138309]
[1645833671140,1.52583127,2772.5,2771.8,0.00467986]
[1645833671538,1.52583127,2772.5,2771.5,1.1981808]
[1645833671739,0.00289101,2772.4,2771.8,0.00475655]
[1645833671937,1.52583127,2772.5,2771.8,0.00475655]
[1645833672139,1.52872228,2772.5,2771.8,0.00475655]
[1645833672339,11.3922,2772.3,2771.8,0.00475655]
[1645833672541,1.72878023,2772.2,2771.8,0.00475655]
[1645833672739,1.52583127,2772.1,2771.8,0.00475655]
[1645833672989,11.39302861,2772.5,2771.5,1.1981808]
[1645833672990,1.52583127,2772.0,2771.5,1.1981808]
[1645833673289,0.15870074,2772.2,2771.8,0.00475649]
[1645833673290,1.52590392,2771.9,2771.8,0.00475649]
[1645833673689,0.00289101,2772.4,2771.8,0.00475649]
[1645833673690,1.52879493,2772.4,2771.8,0.00475649]
[1645833673889,1.52879493,2772.4,2771.7,1.27956602]
[1645833673890,1.52590392,2772.3,2771.7,1.27956602]
[1645833674095,1.52590392,2772.3,2771.7,1.94176602]
[1645833674293,1.52590392,2772.3,2771.7,1.9465225]
[1645833674491,0.02080752,2772.6,2772.2,1.39833232]
[1645833674492,0.20046708,2772.6,2772.2,1.39833232]
[1645833674691,1.52576843,2772.5,2772.3,5.288]
[1645833674891,1.52576843,2772.5,2772.3,4.788]
[1645833675292,1.52576843,2772.5,2772.3,3.16050836]
[1645833676838,1.52576843,2772.5,2772.4,1.31486697]
[1645833678236,1.52576843,2772.5,2772.4,1.61486697]
[1645833678438,1.52576843,2772.5,2772.4,1.31486697]
[1645833679739,1.52576843,2772.5,2772.4,1.61486697]
[1645833680040,1.52576843,2772.5,2772.4,1.31486697]
[1645833680891,1.52576843,2772.5,2772.4,1.67706697]
[1645833681092,1.52576843,2772.5,2772.4,1.97706697]
[1645833682591,1.52576843,2772.5,2772.4,1.95689697]
[1645833683993,0.02080752,2772.6,2772.4,1.95689697]
[1645833684434,0.02080752,2772.6,2772.4,3.11569697]
[1645833684837,0.02080752,2772.6,2772.4,4.11569697]
[1645833685039,0.02080752,2772.6,2772.4,3.11569697]
[1645833685235,0.02080752,2772.6,2772.4,4.11569697]
[1645833685447,0.02080752,2772.6,2772.4,2.47366697]
[1645833685640,1.52553412,2772.5,2772.4,2.47366697]
[1645833686849,0.02080752,2772.6,2772.4,2.47366697]
[1645833687042,0.02080752,2772.6,2772.4,2.83586697]
[1645833687245,0.02080752,2772.6,2772.4,4.13586697]
[1645833687845,0.02080752,2772.6,2772.4,4.63586697]
[1645833689101,0.02080752,2772.6,2772.4,4.27366697]
[1645833690496,0.02080752,2772.6,2772.4,2.97366697]
[1645833691948,1.52550296,2772.5,2772.4,1.6588]
[1645833695250,1.52550296,2772.5,2772.4,1.36839681]
[1645833695485,1.52550296,2772.5,2772.3,3.16050836]
[1645833695690,1.52550296,2772.5,2772.3,3.46050836]
[1645833695896,1.52550296,2772.5,2772.3,3.16050836]
[1645833696893,1.52550296,2772.5,2772.4,1.16159772]
[1645833697195,1.52550296,2772.5,2772.3,3.16050836]
[1645833697397,1.52550296,2772.5,2771.9,1.2449]
[1645833697398,6.88770296,2772.5,2771.9,1.2449]
[1645833697595,0.3622,2772.3,2771.8,1.95977774]
[1645833697794,1.52550296,2772.2,2771.8,1.95977774]
[1645833698015,1.52550296,2772.2,2771.8,1.88635025]
[1645833698398,1.52550296,2772.1,2771.9,1.3492526]
[1645833698594,1.52550296,2772.0,2771.9,1.3492526]
[1645833698795,1.52839397,2772.5,2771.9,1.3492526]
[1645833698997,0.18109562,2772.6,2771.9,1.3492526]
[1645833698998,1.52567344,2772.4,2771.9,1.3492526]
[1645833699261,1.52569733,2772.3,2771.9,1.3492526]
[1645833699448,1.52569733,2772.2,2771.8,1.7559679]
[1645833699650,1.52569733,2772.1,2771.8,1.69143694]
[1645833699851,6.52569733,2772.1,2771.8,1.69143694]
[1645833700049,0.21529305,2771.9,2771.8,1.62103293]
[1645833700252,17.91529038,2771.9,2771.8,1.62103293]
[1645833700452,17.91529038,2771.9,2771.3,0.27260923]
[1645833700453,11.03,2771.6,2771.3,0.27260923]
[1645833700655,11.03,2771.4,2771.3,9.003e-05]
[1645833700854,11.03,2770.8,2770.3,0.5]
[1645833701063,5.0,2770.6,2770.3,0.5]
[1645833701253,12.69999733,2770.7,2769.7,2.3569]
[1645833701254,0.229866,2770.4,2769.7,2.3569]
[1645833701453,0.1443,2770.5,2769.7,2.3569]
[1645833701653,0.3622,2770.2,2769.4,4.3628]
[1645833701855,0.15203362,2770.1,2769.4,4.3628]
[1645833702053,0.1444,2770.0,2769.4,4.3628]
[1645833702255,0.3622,2769.9,2769.4,4.3628]
[1645833702453,0.4444,2770.1,2769.4,4.3628]
[1645833702454,0.5066,2770.1,2769.4,4.3628]
[1645833702658,0.3622,2770.1,2769.4,4.3628]
[1645833703096,0.22818406,2770.0,2769.4,4.3628]
[1645833703298,0.5509572,2770.2,2769.4,4.3628]
[1645833703501,0.1549325,2770.0,2769.4,4.3628]
[1645833703705,0.16243751,2770.0,2769.4,4.3628]
[1645833703902,0.19687525,2770.0,2769.4,4.3628]
[1645833704101,0.17306976,2770.1,2769.4,4.3628]
[1645833704303,0.53750538,2770.3,2769.4,4.3628]
[1645833704703,0.19808218,2770.0,2769.4,4.3628]
[1645833704905,0.3622,2770.3,2769.4,4.3628]
[1645833705303,0.3622,2770.2,2769.4,4.3628]
[1645833705501,0.17899497,2770.4,2769.6,0.00475541]
[1645833705902,1.0,2770.5,2769.6,1.22943771]
[1645833706101,1.36260748,2770.6,2769.6,0.00475541]
[1645833706306,1.52660613,2770.5,2769.4,4.3628]
[1645833706502,0.58356804,2770.4,2769.4,4.3628]
[1645833706752,0.22136804,2770.4,2769.9,0.00475499]
[1645833707146,11.58356317,2770.4,2769.9,0.00475499]
[1645833707347,12.3922,2770.4,2769.9,0.00475499]
[1645833707648,12.3922,2770.4,2769.4,4.3628]
[1645833707649,0.18269673,2770.3,2769.4,4.3628]
[1645833707849,1.3622,2770.4,2770.0,0.00475487]
[1645833708051,0.1773885,2770.3,2770.0,0.00475487]
[1645833708248,0.57214628,2770.5,2770.0,0.00475487]
[1645833708449,0.16860689,2770.4,2769.4,4.06755487]
[1645833708747,0.47042754,2770.5,2769.4,4.06755487]
[1645833708952,0.19386786,2770.5,2769.9,1.14610643]
[1645833709148,1.08072697,2770.5,2769.4,4.06755487]
[1645833709347,0.3622,2770.4,2769.4,4.06755487]
[1645833709751,0.38678774,2770.4,2769.4,4.06755487]
[1645833710148,0.02458774,2770.4,2769.4,4.06755487]
[1645833710349,0.02458774,2770.4,2769.8,0.00332608]
[1645833711202,0.02458774,2770.4,2769.4,4.72975487]
[1645833711416,0.02458774,2770.4,2769.9,0.0047551]
[1645833711610,0.02458774,2770.4,2769.9,5.3669551]
[1645833711803,0.0190085,2771.6,2770.2,5.3622]
[1645833712008,0.0190085,2771.6,2770.8,0.3622]
[1645833712203,0.0190085,2771.6,2770.9,1.46292899]
[1645833712403,0.20424038,2772.3,2770.9,2.36517899]
[1645833712604,0.3622,2772.0,2770.9,2.36517899]
[1645833712811,0.3812097,2771.8,2770.9,1.46292899]
[1645833713005,1.52602959,2771.7,2770.9,1.46292899]
[1645833713206,1.52602959,2771.7,2770.9,1.76292899]
[1645833713405,1.52602959,2771.7,2771.5,1.18264673]
[1645833713605,1.52602959,2771.7,2770.9,0.38703469]
[1645833713806,1.52602959,2771.7,2770.9,0.08703469]
[1645833714007,0.19185933,2771.8,2770.9,0.08703469]
[1645833714270,1.52610296,2771.7,2770.9,0.08703469]
[1645833714463,0.02376137,2771.9,2771.0,0.3622]
[1645833714865,0.00289101,2772.6,2771.5,0.3622]
[1645833715068,1.52863461,2772.7,2771.7,0.3622]
[1645833715265,5.223e-05,2771.9,2771.7,1.0902]
[1645833715463,5.223e-05,2771.9,2771.8,1.78697554]
[1645833716062,0.00289101,2772.8,2771.8,1.78697554]
[1645833716266,1.52856034,2772.8,2771.8,1.42477554]
[1645833716463,1.52856034,2772.8,2772.5,1.41350467]
[1645833716666,1.52856034,2772.8,2771.8,2.3067]
[1645833716667,1.62731296,2772.1,2771.8,2.3067]
[1645833716968,1.62731296,2772.1,2771.9,0.1443]
[1645833717264,1.62731296,2772.1,2771.8,2.3067]
[1645833717664,1.62731296,2772.1,2771.9,1.34846385]
[1645833718614,0.00289101,2772.7,2772.0,0.90202]
[1645833718814,0.16661239,2772.8,2772.1,4.1524]
[1645833718815,0.00289101,2772.8,2772.1,4.1524]
[1645833719015,0.04309635,2772.9,2772.1,4.1524]
[1645833719215,1.52561373,2772.8,2772.7,1.26854725]
[1645833719622,1.52570172,2772.8,2772.7,1.26854725]
[1645833720023,1.52570172,2772.8,2772.1,4.1524]
[1645833720426,1.52859273,2772.8,2772.1,4.4524]
[1645833720625,1.52570172,2772.8,2772.1,4.4524]
[1645833721024,1.52570172,2772.8,2772.2,1.25012777]
[1645833721230,1.52570172,2772.8,2772.7,1.26598476]
[1645833721430,1.52570172,2772.8,2772.1,4.7524]
[1645833721625,1.52859273,2772.8,2772.1,4.4524]
[1645833722257,1.52859273,2772.8,2772.1,4.1524]
[1645833722453,1.52859273,2772.8,2772.2,1.13596803]
[1645833722753,1.52859273,2772.8,2772.7,1.34591756]
[1645833722954,1.52570172,2772.8,2772.7,1.34591756]
[1645833726003,1.52570172,2772.8,2772.1,4.1524]
[1645833726207,1.52570172,2772.8,2771.8,4.11048]
[1645833726208,5.3622,2772.6,2771.8,2.31145461]
[1645833726403,16.3922,2772.3,2771.8,2.31145461]
[1645833726599,13.23692572,2772.2,2771.8,0.00475461]
[1645833726798,1.95370172,2772.1,2771.8,0.00475461]
[1645833727001,6.67000172,2772.0,2771.8,0.00475461]
[1645833727201,1.720911,2771.9,2771.8,0.00475425]
[1645833727405,1.865211,2771.9,2771.8,0.00475425]
[1645833728002,1.865211,2771.9,2771.2,4.1066]
[1645833728200,1.52570172,2771.8,2771.2,4.1066]
[1645833728400,1.52570172,2771.8,2771.7,0.0044885]
[1645833729260,1.52570172,2771.8,2771.2,4.1066]
[1645833729261,0.3622,2771.7,2771.2,4.1066]
[1645833729450,0.3622,2771.7,2771.6,0.00448862]
[1645833729451,5.9980923,2771.7,2771.6,0.00448862]
[1645833729651,13.36458097,2771.7,2771.6,0.00448862]
[1645833729856,14.60098867,2771.7,2771.6,0.00448862]
[1645833730254,14.86051688,2771.7,2771.6,0.00448862]
[1645833730456,3.83051688,2771.7,2770.7,1.20893837]
[1645833730656,12.91834105,2771.6,2770.7,1.20893837]
[1645833730955,1.0,2771.6,2771.5,0.00448874]
[1645833731155,1.428,2771.6,2771.5,0.00448874]
[1645833731362,2.0360649,2771.6,2771.5,0.00448874]
[1645833731762,2.0360649,2771.6,2770.2,6.4836]
[1645833731763,11.3922,2771.5,2770.2,6.4836]
[1645833731957,11.3922,2771.2,2770.2,6.4836]
[1645833732357,0.3622,2771.2,2770.2,6.4836]
[1645833732563,1.3622,2771.2,2770.2,6.4836]
[1645833732758,0.3622,2771.2,2770.5,1.24533363]
[1645833732996,0.3622,2771.2,2770.2,6.4836]
[1645833733199,11.3922,2771.1,2770.6,0.00475562]
[1645833733397,0.21781458,2771.2,2770.6,0.00475562]
[1645833733599,1.0,2771.1,2770.6,0.00475562]
[1645833733802,11.24074932,2771.2,2770.6,0.00475562]
[1645833734001,16.03,2770.7,2769.8,1.42049348]
[1645833734201,16.03,2770.7,2769.9,4.4142]
[1645833734202,5.0,2770.7,2769.9,4.4142]
[1645833734399,0.3622,2770.6,2769.9,4.4142]
[1645833734801,0.34549891,2770.7,2769.9,4.4142]
[1645833735000,0.428,2770.8,2769.9,4.4142]
[1645833735500,0.428,2770.8,2770.2,0.0047524]
[1645833735501,0.3622,2770.7,2770.2,0.0047524]
[1645833736103,0.97269997,2770.6,2770.2,0.0047524]
[1645833736304,5.0,2770.3,2770.2,0.0047524]
[1645833736503,0.428,2770.3,2769.4,0.00432727]
[1645833736960,0.428,2770.3,2769.6,1.33182001]
[1645833737158,0.7902,2770.3,2769.7,4.1002]
[1645833737362,0.428,2770.3,2769.7,4.1002]
[1645833737761,0.428,2770.9,2769.7,4.4002]
[1645833737965,0.54614843,2771.3,2769.9,0.00473424]
[1645833738160,1.52627044,2771.2,2769.9,0.00473424]
[1645833738364,1.52627044,2771.2,2769.9,1.19993424]
[1645833738561,1.52627044,2771.2,2769.9,1.49993424]
[1645833738762,1.52627044,2771.2,2770.5,1.0540618]
[1645833738967,0.54614843,2771.3,2770.5,1.0540618]
[1645833739273,1.5262206,2771.2,2770.5,1.0540618]
[1645833739463,0.71812047,2771.3,2770.4,0.00473251]
[1645833739665,1.52621313,2771.2,2770.4,0.00473251]
[1645833740062,0.54480531,2771.3,2769.9,1.8574]
[1645833740063,0.69629566,2771.3,2769.9,1.8574]
[1645833740266,0.54480531,2771.3,2769.9,1.8574]
[1645833740511,11.57480531,2771.3,2770.7,0.00473221]
[1645833740709,0.53982078,2771.2,2770.7,0.00473221]
[1645833741210,0.53982078,2771.2,2770.3,1.38494509]
[1645833741510,0.53982078,2771.2,2770.8,0.00473203]
[1645833742510,0.17762078,2771.2,2770.5,1.37838988]
[1645833742712,1.1922387,2771.6,2770.9,0.00473304]
[1645833742914,0.4443,2771.7,2770.9,0.00473304]
[1645833743115,0.16188163,2771.5,2770.9,0.00473304]
[1645833743713,0.16188163,2771.5,2770.7,4.0196]
[1645833743911,0.52408163,2771.5,2770.7,4.0196]
[1645833744112,0.52408163,2771.5,2771.1,0.0047328]
[1645833744353,0.00946559,2771.0,2770.7,4.0196]
[1645833745154,0.00946559,2771.0,2770.7,3.8196]
[1645833746158,0.00946559,2771.0,2769.7,0.00444439]
[1645833746159,11.03,2770.7,2769.7,0.00444439]
[1645833746359,11.19864702,2770.7,2769.8,6.7467]
[1645833746557,11.64294702,2770.7,2769.8,6.7467]
[1645833746758,0.16916718,2770.6,2769.8,6.7467]
[1645833747157,1.21325513,2770.7,2769.8,6.7467]
[1645833747357,0.7410981,2771.0,2769.8,6.7467]
[1645833747557,0.71651408,2771.0,2769.9,3.9928]
[1645833747999,1.07871408,2771.0,2770.2,1.20915996]
[1645833748201,1.07871408,2771.0,2769.9,3.9928]
[1645833748704,12.10871408,2771.0,2769.9,3.9928]
[1645833748906,0.19471544,2770.9,2769.9,3.9928]
[1645833749303,0.16907048,2770.8,2769.9,3.9928]
[1645833749703,0.1443,2770.7,2769.9,3.9928]
[1645833749903,0.31975912,2770.8,2769.9,3.9928]
[1645833750708,0.3622,2770.6,2769.9,3.9928]
[1645833750912,0.18451425,2770.7,2769.9,3.9928]
[1645833751108,0.17413034,2770.9,2770.2,0.00457283]
[1645833751308,0.56105839,2771.0,2770.2,0.00457283]
[1645833751606,0.75080784,2771.0,2770.2,0.00457283]
[1645833751862,0.89510784,2771.0,2770.3,1.14514826]
[1645833752270,0.89510784,2771.0,2769.9,4.1928]
[1645833752271,0.70535839,2771.0,2769.9,4.1928]
[1645833752469,0.70535839,2771.0,2770.5,0.00457253]
[1645833752869,0.56105839,2771.0,2770.5,0.00457253]
[1645833753371,0.56105839,2771.0,2769.9,4.1928]
[1645833753574,0.56105839,2771.0,2770.6,0.00457235]
[1645833753971,0.00946559,2771.0,2770.6,0.00457235]
[1645833754271,1.36179154,2772.0,2770.7,7.1622]
[1645833754272,0.67913722,2772.0,2770.7,7.1622]
[1645833754469,0.03819997,2771.9,2770.9,0.3622]
[1645833754671,0.03819997,2771.9,2770.9,0.6622]